bitfinex/quotes_BTCUSD_20240911
["timestamp","ask_amount","ask_price","bid_price","bid_amount"]
[1726080474349,0.0006538,57751.0,57749.0,1.98863655]
[1726080474591,0.0006538,57751.0,57749.0,1.97463655]
[1726080475039,0.0006538,57751.0,57749.0,1.98863655]
[1726080478267,0.0006538,57751.0,57749.0,2.18931731]
[1726080481728,0.0006538,57751.0,57749.0,2.38825749]
[1726080481953,0.0006538,57751.0,57749.0,2.18931731]
[1726080482207,0.0006538,57751.0,57749.0,0.533489]
[1726080482449,0.0006538,57751.0,57749.0,0.187163]
[1726080483168,0.0006538,57751.0,57749.0,0.533489]
[1726080483402,0.0006538,57751.0,57749.0,0.879815]
[1726080483643,0.0006538,57751.0,57749.0,0.865815]
[1726080483866,0.0006538,57751.0,57749.0,0.9870307]
[1726080484092,0.0006538,57751.0,57749.0,1.0010307]
[1726080484559,0.0006538,57751.0,57749.0,0.9870307]
[1726080484793,0.0006538,57751.0,57749.0,1.3473567]
[1726080485015,0.0006538,57751.0,57749.0,1.0010307]
[1726080485243,0.0006538,57751.0,57749.0,0.9870307]
[1726080485466,0.0006538,57751.0,57749.0,1.0010307]
[1726080485697,0.0006538,57751.0,57749.0,1.4390567]
[1726080486360,0.0006538,57751.0,57749.0,1.4690567]
[1726080486857,0.0006538,57751.0,57749.0,1.5920567]
[1726080488240,0.0006538,57751.0,57749.0,1.5780567]
[1726080488471,0.0006538,57751.0,57749.0,1.9243827]
[1726080488702,0.0006538,57751.0,57749.0,1.5920567]
[1726080489141,0.0006538,57751.0,57749.0,1.9383827]
[1726080489623,0.0006538,57751.0,57749.0,1.9403827]
[1726080489871,0.0006538,57751.0,57749.0,2.16232288]
[1726080490352,0.0006538,57751.0,57749.0,2.52264888]
[1726080491267,0.0006538,57751.0,57750.0,2.01776]
[1726080491484,0.0037778,57768.0,57752.0,0.842362]
[1726080491709,0.0037778,57768.0,57752.0,1.46461018]
[1726080491943,0.0037778,57768.0,57752.0,2.84984218]
[1726080492193,0.0037778,57768.0,57767.0,1.96656176]
[1726080492428,0.0037778,57768.0,57767.0,1.79651331]
[1726080492652,0.0037778,57768.0,57767.0,1.70701331]
[1726080492872,0.0037778,57768.0,57767.0,2.05323131]
[1726080493338,0.0037778,57768.0,57767.0,2.07623131]
[1726080493567,0.2154778,57768.0,57763.0,0.346237]
[1726080493806,0.2154778,57768.0,57760.0,0.1]
[1726080493807,0.2154778,57768.0,57764.0,0.34623]
[1726080494021,0.2154778,57768.0,57767.0,0.187109]
[1726080494244,0.2154778,57768.0,57767.0,0.533327]
[1726080494527,0.2154778,57768.0,57767.0,0.6072826]
[1726080494760,0.2154778,57768.0,57767.0,0.519327]
[1726080494973,0.2154778,57768.0,57767.0,0.865545]
[1726080495416,0.1211778,57768.0,57767.0,0.865545]
[1726080495651,0.0037778,57768.0,57767.0,1.211763]
[1726080495884,0.0037778,57768.0,57767.0,1.53802006]
[1726080496118,0.0037778,57768.0,57767.0,1.88423806]
[1726080496342,0.0037778,57768.0,57767.0,1.89023806]
[1726080496562,0.0037778,57768.0,57767.0,1.92023806]
[1726080497000,0.0037778,57768.0,57767.0,1.91423806]
[1726080497231,0.0037778,57768.0,57767.0,2.01953806]
[1726080497685,0.0037778,57768.0,57767.0,2.00553806]
[1726080497686,0.0045978,57768.0,57767.0,2.00553806]
[1726080498105,0.0045978,57768.0,57767.0,2.01953806]
[1726080498338,0.0045978,57768.0,57767.0,1.8188573]
[1726080499983,0.0045978,57768.0,57767.0,1.7275573]
[1726080500208,0.0045978,57768.0,57767.0,1.3813393]
[1726080500662,0.0045978,57768.0,57767.0,1.0051213]
[1726080500881,0.0045978,57768.0,57767.0,0.865545]
[1726080501102,0.0045978,57768.0,57766.0,0.173112]
[1726080501317,0.0045978,57768.0,57767.0,0.187109]
[1726080501529,0.0045978,57768.0,57767.0,0.533327]
[1726080501984,0.0045978,57768.0,57767.0,0.187109]
[1726080502245,0.0045978,57768.0,57767.0,0.533327]
[1726080502718,0.0045978,57768.0,57767.0,0.9675004]
[1726080503181,0.0946,57770.0,57768.0,0.692424]
[1726080503416,0.0946,57773.0,57772.0,0.173094]
[1726080504394,0.0946,57773.0,57772.0,0.86547]
[1726080504619,0.000822,57774.0,57773.0,0.519273]
[1726080504885,0.000822,57774.0,57773.0,0.9520029]
[1726080505117,0.000822,57774.0,57773.0,1.2981849]
[1726080507018,0.000822,57774.0,57773.0,1.3121849]
[1726080508698,0.000822,57774.0,57773.0,0.9660029]
[1726080508913,0.000822,57774.0,57773.0,0.2736389]
[1726080509378,0.000822,57774.0,57773.0,0.6058209]
[1726080509855,0.000822,57774.0,57773.0,0.6198209]
[1726080512871,0.000822,57774.0,57773.0,0.9660029]
[1726080514023,0.000822,57774.0,57773.0,0.6198209]
[1726080514252,0.000822,57774.0,57773.0,0.1005479]
[1726080514481,0.000822,57774.0,57773.0,0.014]
[1726080515228,0.637186,57774.0,57773.0,0.014]
[1726080516143,0.29101,57774.0,57773.0,0.014]
[1726080517231,0.31208048,57774.0,57773.0,0.014]
[1726080517510,0.02189248,57774.0,57773.0,0.187091]
[1726080517759,0.000822,57774.0,57773.0,0.2404203]
[1726080518036,0.000822,57774.0,57773.0,0.5866023]
[1726080519025,0.000822,57774.0,57773.0,0.2404203]
[1726080519265,0.000822,57774.0,57773.0,0.5866023]
[1726080520200,0.000822,57774.0,57773.0,0.0673293]
[1726080520436,0.000822,57774.0,57773.0,0.2404203]
[1726080520666,0.17391,57774.0,57773.0,0.014]
[1726080520892,0.54109631,57774.0,57773.0,0.014]
[1726080521377,0.19492031,57774.0,57773.0,0.014]
[1726080521600,0.000822,57774.0,57773.0,0.533273]
[1726080521824,0.000822,57774.0,57773.0,0.5866003]
[1726080522051,0.02796291,57774.0,57773.0,0.5866003]
[1726080522739,0.02796291,57774.0,57773.0,0.9327823]
[1726080522970,0.02796291,57774.0,57773.0,1.2789643]
[1726080523200,0.000822,57774.0,57773.0,0.879455]
[1726080527022,0.02796141,57774.0,57773.0,0.879455]
[1726080527483,0.20104941,57774.0,57773.0,0.014]
[1726080527713,0.68223392,57774.0,57773.0,0.014]
[1726080528426,1.02840992,57774.0,57773.0,0.014]
[1726080528636,0.68223392,57774.0,57773.0,0.014]
[1726080530324,1.67219064,57774.0,57773.0,0.014]
[1726080530731,1.73398405,57774.0,57773.0,0.014]
[1726080531132,2.08016005,57774.0,57773.0,0.014]
[1726080531330,1.2117,57770.0,57769.0,0.001638]
[1726080531564,1.23260851,57770.0,57769.0,0.001638]
[1726080532679,1.23360851,57770.0,57769.0,0.001638]
[1726080533146,0.8665,57770.0,57769.0,0.001638]
[1726080533623,0.5203,57770.0,57769.0,0.001638]
[1726080534058,0.8665,57770.0,57769.0,0.001638]
[1726080534267,0.91817243,57770.0,57769.0,0.001638]
[1726080534450,0.8655,57770.0,57769.0,0.001638]
[1726080534692,0.91717243,57770.0,57769.0,0.001638]
[1726080534910,0.93990308,57770.0,57769.0,0.001638]
[1726080535368,0.88623065,57770.0,57769.0,0.001638]
[1726080535584,0.88623065,57770.0,57769.0,0.008638]
[1726080535812,0.93790308,57770.0,57769.0,0.008638]
[1726080536242,0.59170308,57770.0,57769.0,0.008638]
[1726080536706,0.93790308,57770.0,57769.0,0.008638]
[1726080537171,0.91717243,57770.0,57769.0,0.008638]
[1726080537391,0.91715358,57770.0,57769.0,0.008638]
[1726080539134,0.93785884,57770.0,57769.0,0.008638]
[1726080539561,0.96500376,57770.0,57769.0,0.008638]
[1726080540469,0.96507879,57770.0,57769.0,0.008638]
[1726080540682,1.31126955,57770.0,57769.0,0.008638]
[1726080540927,0.96506955,57770.0,57769.0,0.008638]
[1726080541363,0.93792463,57770.0,57769.0,0.008638]
[1726080541813,0.88628029,57770.0,57769.0,0.008638]
[1726080542030,1.23248029,57770.0,57769.0,0.008638]
[1726080542486,2.44915712,57770.0,57769.0,0.008638]
[1726080542703,2.44915712,57770.0,57747.0,0.346338]
[1726080542704,0.173148,57754.0,57747.0,0.346338]
[1726080542932,0.173148,57754.0,57744.0,0.55525]
[1726080542933,0.519444,57754.0,57744.0,0.55525]
[1726080543149,0.519444,57754.0,57748.0,0.173166]
[1726080543367,0.519444,57754.0,57744.0,0.55525]
[1726080543637,0.05164002,57760.0,57752.0,0.346307]
[1726080543852,0.51261103,57762.0,57754.0,0.0347945]
[1726080543853,0.05164002,57761.0,57754.0,0.0347945]
[1726080544086,0.19381555,57760.0,57756.0,0.173141]
[1726080544373,0.173132,57760.0,57756.0,0.173141]
[1726080544590,0.20028307,57760.0,57757.0,0.06682705]
[1726080544820,0.02715107,57760.0,57757.0,0.06682705]
[1726080545036,0.02715107,57760.0,57759.0,0.519399]
[1726080545281,0.02715107,57760.0,57759.0,0.865665]
[1726080546262,0.02715107,57760.0,57759.0,1.211931]
[1726080546479,0.02715107,57760.0,57759.0,0.865665]
[1726080547160,0.02815107,57760.0,57759.0,0.872665]
[1726080547388,0.02815107,57760.0,57759.0,0.180133]
[1726080547608,0.02715107,57760.0,57759.0,0.519399]
[1726080547802,0.02815107,57760.0,57759.0,0.187133]
[1726080548069,0.02815107,57760.0,57759.0,0.014]
[1726080550098,0.02815107,57760.0,57759.0,0.187133]
[1726080550368,0.02815107,57760.0,57759.0,0.2345639]
[1726080550569,0.02815107,57760.0,57759.0,0.187133]
[1726080552180,0.001,57760.0,57759.0,0.187133]
[1726080553071,0.001,57760.0,57759.0,0.533399]
[1726080553300,0.001,57760.0,57759.0,0.87533593]
[1726080553532,0.001,57760.0,57759.0,1.00890182]
[1726080553779,0.001,57760.0,57759.0,0.18280393]
[1726080554229,0.001,57760.0,57759.0,0.52906993]
[1726080554895,0.001,57760.0,57759.0,0.87533593]
[1726080555366,0.02814574,57760.0,57759.0,0.87533593]
[1726080556301,0.02814574,57760.0,57759.0,0.18280393]
[1726080556539,0.02814574,57760.0,57759.0,0.52906993]
[1726080557052,0.02814574,57760.0,57759.0,0.53070793]
[1726080557504,0.02814574,57760.0,57759.0,0.01130893]
[1726080557743,0.02814574,57760.0,57759.0,0.53070793]
[1726080558448,0.02814574,57760.0,57759.0,0.01130893]
[1726080559429,0.02814574,57760.0,57759.0,0.18444193]
[1726080560128,0.02814574,57760.0,57759.0,0.53070793]
[1726080560907,0.02814574,57760.0,57759.0,0.87697393]
[1726080561144,0.02814574,57760.0,57759.0,1.11216272]
[1726080561566,0.02814574,57760.0,57759.0,0.98967393]
[1726080562074,0.001,57760.0,57759.0,0.98967393]
[1726080563275,0.001,57760.0,57759.0,1.62404465]
[1726080563482,0.001,57760.0,57759.0,2.35925083]
[1726080563990,0.001,57760.0,57759.0,2.71736657]
[1726080564214,0.000819,57770.0,57769.0,1.211721]
[1726080565348,0.000819,57770.0,57769.0,1.557927]
[1726080565809,0.000819,57770.0,57769.0,0.865515]
[1726080566988,0.000819,57770.0,57769.0,0.014]
[1726080567260,1.33957817,57770.0,57769.0,0.014]
[1726080567452,1.7115797,57770.0,57769.0,0.014]
[1726080567677,1.94976647,57770.0,57769.0,0.014]
[1726080567928,1.94976647,57770.0,57759.0,0.001638]
[1726080567929,0.86565,57760.0,57759.0,0.001638]
[1726080568174,1.25925472,57760.0,57759.0,0.001638]
[1726080568414,1.6779592,57760.0,57759.0,0.001638]
[1726080568682,1.70711208,57760.0,57759.0,0.001638]
[1726080568923,2.07481164,57760.0,57759.0,0.001638]
[1726080569404,1.83091571,57760.0,57759.0,0.001638]
[1726080570376,1.75349093,57760.0,57759.0,0.001638]
[1726080570586,2.03421885,57760.0,57759.0,0.001638]
[1726080571054,2.03221885,57760.0,57759.0,0.001638]
[1726080571287,2.03521885,57760.0,57759.0,0.001638]
[1726080571724,2.03721885,57760.0,57759.0,0.001638]
[1726080571936,2.01006597,57760.0,57759.0,0.001638]
[1726080572166,1.98924264,57760.0,57759.0,0.001638]
[1726080572390,2.00991244,57760.0,57759.0,0.001638]
[1726080572613,2.33550264,57760.0,57759.0,0.001638]
[1726080572836,2.00791128,57760.0,57759.0,0.001638]
[1726080573058,1.211973,57757.0,57756.0,0.001638]
[1726080573289,1.54967114,57757.0,57756.0,0.001638]
[1726080573528,1.67864916,57757.0,57756.0,0.001638]
[1726080573984,1.61133948,57757.0,57756.0,0.001638]
[1726080574220,2.05610138,57757.0,57756.0,0.001638]
[1726080574443,2.1784535,57757.0,57756.0,0.002638]
[1726080574916,1.8301755,57757.0,57756.0,0.001638]
[1726080575144,1.8321755,57757.0,57756.0,0.001638]
[1726080575370,1.85933068,57757.0,57756.0,0.001638]
[1726080576359,1.48305268,57757.0,57756.0,0.001638]
[1726080576577,1.48105268,57757.0,57756.0,0.001638]
[1726080576799,1.31509548,57757.0,57756.0,0.001638]
[1726080577017,1.44391556,57757.0,57756.0,0.001638]
[1726080577477,1.45091556,57757.0,57756.0,0.002638]
[1726080577920,1.22979548,57757.0,57756.0,0.001638]
[1726080578140,1.23284017,57757.0,57756.0,0.001638]
[1726080578581,1.12979548,57757.0,57756.0,0.001638]
[1726080578824,1.13000167,57757.0,57756.0,0.001638]
[1726080579063,0.10443062,57757.0,57756.0,0.001638]
[1726080579330,0.25180855,57757.0,57756.0,0.0192809]
[1726080580449,0.54657218,57757.0,57756.0,0.001638]
[1726080580664,0.20029418,57757.0,57756.0,0.001638]
[1726080580883,0.54657218,57757.0,57756.0,0.001638]
[1726080581114,0.54657218,57757.0,57756.0,0.007638]
[1726080581374,0.54757218,57757.0,57756.0,0.007638]
[1726080581587,0.02815518,57757.0,57756.0,0.007638]
[1726080582076,0.02815518,57757.0,57756.0,0.5626218]
[1726080582780,0.02815518,57757.0,57756.0,0.617264]
[1726080583014,0.02815518,57757.0,57756.0,0.27098]
[1726080583253,0.54757218,57757.0,57756.0,0.007638]
[1726080583495,0.54757218,57757.0,57756.0,0.001638]
[1726080583496,0.89285018,57757.0,57756.0,0.001638]
[1726080583731,0.20029418,57757.0,57756.0,0.001638]
[1726080584018,0.54757218,57757.0,57756.0,0.007638]
[1726080584475,0.54757218,57757.0,57756.0,0.000638]
[1726080584476,2.13055111,57757.0,57756.0,0.000638]
[1726080584706,2.13055111,57757.0,57753.0,0.001638]
[1726080584707,1.214036,57754.0,57753.0,0.001638]
[1726080584953,1.6979169,57754.0,57753.0,0.001638]
[1726080585204,2.09585311,57754.0,57753.0,0.001638]
[1726080586142,2.0442129,57754.0,57753.0,0.001638]
[1726080586379,1.98257741,57754.0,57753.0,0.001638]
[1726080586633,2.0442029,57754.0,57753.0,0.001638]
[1726080587089,2.05608946,57754.0,57753.0,0.002638]
[1726080587315,1.99446397,57754.0,57753.0,0.002638]
[1726080587543,2.05614395,57754.0,57753.0,0.001638]
[1726080588014,2.05414395,57754.0,57753.0,0.00077453]
[1726080588256,2.05614395,57754.0,57753.0,0.00077453]
[1726080588479,2.28370586,57754.0,57753.0,0.00077453]
[1726080590524,0.0858,57750.0,57730.0,0.20114]
[1726080590765,0.0858,57750.0,57730.0,0.221254]
[1726080590766,0.519651,57731.0,57730.0,0.221254]
[1726080590983,0.519651,57731.0,57730.0,0.20114]
[1726080591662,0.866085,57731.0,57730.0,0.20114]
[1726080591885,0.866085,57731.0,57730.0,0.00164]
[1726080593952,0.173203,57736.0,57731.0,0.173216]
[1726080594175,0.05149034,57742.0,57732.0,0.1388305]
[1726080594583,0.34638,57740.0,57732.0,0.3120435]
[1726080594801,0.05149034,57742.0,57732.0,0.0867]
[1726080595018,0.173197,57738.0,57732.0,0.0867]
[1726080595238,0.173202,57736.0,57732.0,0.0867]
[1726080595492,0.173203,57736.0,57732.0,0.259912]
[1726080596097,0.173203,57736.0,57732.0,0.254912]
[1726080596239,0.173205,57735.0,57732.0,0.0817]
[1726080596889,0.346398,57737.0,57732.0,0.0937]
[1726080597335,0.173203,57736.0,57732.0,0.266913]
[1726080597516,0.173203,57736.0,57732.0,0.254913]
[1726080597723,0.173203,57736.0,57732.0,0.267913]
[1726080598371,0.346392,57738.0,57732.0,0.267911]
[1726080598541,0.29822338,57751.0,57732.0,0.267911]
[1726080598542,0.346371,57742.0,57733.0,0.17321]
[1726080598742,0.1732,57737.0,57732.0,0.3754363]
[1726080598945,0.1732,57737.0,57732.0,0.3624353]
[1726080599148,0.1732,57737.0,57732.0,0.266912]
[1726080599377,0.20036107,57736.0,57732.0,0.0937]
[1726080599789,0.02715907,57736.0,57732.0,0.0937]
[1726080599989,0.02715907,57736.0,57733.0,0.17321]
[1726080600199,0.02715907,57736.0,57735.0,0.173205]
[1726080600404,0.02715907,57736.0,57735.0,0.59137211]
[1726080600605,0.02715907,57736.0,57735.0,1.13118211]
[1726080600813,0.02715907,57736.0,57735.0,0.713015]
[1726080601014,0.02715907,57736.0,57735.0,0.366605]
[1726080601228,0.02715907,57736.0,57735.0,0.713015]
[1726080601511,0.02715907,57736.0,57735.0,0.366605]
[1726080601939,0.02715907,57736.0,57735.0,1.059425]
[1726080602130,0.02715907,57736.0,57735.0,1.1664675]
[1726080602368,0.02715907,57736.0,57735.0,1.1784675]
[1726080603428,0.02715907,57736.0,57735.0,0.2054]
[1726080603655,0.02715907,57736.0,57735.0,0.725015]
[1726080604383,0.20036107,57736.0,57735.0,0.012]
[1726080604598,0.54676507,57736.0,57735.0,0.012]
[1726080604831,0.5678919,57736.0,57735.0,0.012]
[1726080605046,0.54073283,57736.0,57735.0,0.012]
[1726080605272,0.56789222,57736.0,57735.0,0.012]
[1726080605769,1.26070022,57736.0,57735.0,0.012]
[1726080606001,1.26070022,57736.0,57735.0,0.01364]
[1726080606216,1.37640022,57736.0,57735.0,0.01364]
[1726080606900,1.37640022,57736.0,57735.0,0.00164]
[1726080607094,1.37740022,57736.0,57735.0,0.00164]
[1726080607342,1.62120022,57736.0,57735.0,0.00164]
[1726080607563,1.62120022,57736.0,57730.0,0.00164]
[1726080607564,1.41312372,57731.0,57730.0,0.00164]
[1726080607796,1.53625055,57731.0,57730.0,0.00164]
[1726080608030,2.70725646,57731.0,57730.0,0.00164]
[1726080608260,1.90442518,57731.0,57730.0,0.00164]
[1726080608491,1.59600976,57731.0,57730.0,0.00164]
[1726080608721,1.33364583,57731.0,57730.0,0.00664]
[1726080609205,1.88068455,57731.0,57730.0,0.00164]
[1726080609438,1.88068455,57731.0,57730.0,0.00264]
[1726080609439,2.135216,57731.0,57730.0,0.00264]
[1726080609654,2.088216,57731.0,57730.0,0.00264]
[1726080609905,2.13965365,57731.0,57730.0,0.00264]
[1726080610128,2.13365365,57731.0,57730.0,0.00164]
[1726080610350,2.13964923,57731.0,57730.0,0.00264]
[1726080610808,2.10964923,57731.0,57730.0,0.00264]
[1726080611038,1.33964583,57731.0,57730.0,0.00264]
[1726080611265,0.99275866,57731.0,57730.0,0.00264]
[1726080612197,1.33919266,57731.0,57730.0,0.00264]
[1726080612612,0.99275866,57731.0,57730.0,0.00264]
[1726080612833,0.02667366,57731.0,57730.0,0.00264]
[1726080613050,0.02667366,57731.0,57730.0,0.26436]
[1726080613300,0.006,57731.0,57730.0,1.08622063]
[1726080613741,0.006,57731.0,57730.0,1.05944]
[1726080614375,0.006,57731.0,57730.0,0.713]
[1726080615319,0.173203,57736.0,57732.0,0.173214]
[1726080615535,0.173203,57736.0,57730.0,0.19334]
[1726080615536,0.005,57731.0,57730.0,0.19334]
[1726080615750,0.0321601,57731.0,57730.0,0.36656]
[1726080616195,0.0271601,57731.0,57730.0,0.36556]
[1726080616416,0.0271601,57731.0,57730.0,0.37756]
[1726080617300,0.2003771,57731.0,57730.0,0.20434]
[1726080617538,0.2003771,57731.0,57730.0,0.01364]
[1726080617539,0.3735941,57731.0,57730.0,0.01364]
[1726080617792,0.22129179,57731.0,57730.0,0.01364]
[1726080618042,0.56771368,57731.0,57730.0,0.01364]
[1726080618266,0.91414768,57731.0,57730.0,0.01364]
[1726080618520,1.26058168,57731.0,57730.0,0.01364]
[1726080618750,0.91414768,57731.0,57730.0,0.01364]
[1726080619208,0.91414768,57731.0,57725.0,0.0037778]
[1726080619209,1.11019582,57731.0,57725.0,0.0037778]
[1726080619491,1.69902872,57726.0,57725.0,8e-07]
[1726080619734,1.212792,57718.0,57717.0,0.00164]
[1726080619962,1.10042907,57718.0,57717.0,0.00164]
[1726080620179,0.98718258,57718.0,57717.0,0.00164]
[1726080620445,1.01407896,57718.0,57717.0,0.00164]
[1726080620691,1.36059096,57718.0,57717.0,0.00164]
[1726080620941,0.22105496,57718.0,57717.0,0.00164]
[1726080621226,0.91407896,57718.0,57717.0,0.00164]
[1726080621484,0.02062581,57718.0,57717.0,0.00164]
[1726080621947,0.54039381,57718.0,57717.0,0.00164]
[1726080622187,0.19388181,57718.0,57717.0,0.00164]
[1726080622467,0.19488181,57718.0,57717.0,0.00564]
[1726080622700,0.02162581,57718.0,57717.0,0.00564]
[1726080623171,0.04879486,57718.0,57717.0,0.00564]
[1726080623413,0.56856286,57718.0,57717.0,0.00564]
[1726080624610,0.04879486,57718.0,57717.0,0.00564]
[1726080624889,0.02816905,57718.0,57717.0,0.6507719]
[1726080625100,0.02816905,57718.0,57717.0,0.632717]
[1726080625326,0.02816905,57718.0,57717.0,1.063135]
[1726080625816,0.02816905,57718.0,57717.0,1.409653]
[1726080626526,0.173217,57731.0,57717.0,1.409653]
[1726080626527,0.27460505,57731.0,57724.0,0.173236]
[1726080626752,0.173224,57729.0,57725.0,0.0519722]
[1726080626984,0.02076568,57730.0,57726.0,0.173231]
[1726080627212,0.02073354,57729.0,57726.0,0.173231]
[1726080627492,0.173221,57730.0,57726.0,0.173231]
[1726080627711,0.02073551,57729.0,57726.0,0.173231]
[1726080627935,0.173224,57729.0,57727.0,0.02252032]
[1726080628210,0.346458,57727.0,57717.0,0.19284]
[1726080628476,0.346458,57727.0,57717.0,0.00164]
[1726080628477,0.86628,57718.0,57717.0,0.00164]
[1726080628748,0.88695923,57718.0,57717.0,0.00164]
[1726080628949,1.68628323,57718.0,57717.0,0.00164]
[1726080629179,1.49122829,57718.0,57717.0,0.00164]
[1726080629661,1.49322829,57718.0,57717.0,0.00164]
[1726080629892,1.212834,57716.0,57715.0,0.001642]
[1726080630128,1.33396445,57716.0,57715.0,0.001642]
[1726080630358,1.38545251,57716.0,57715.0,0.001642]
[1726080630582,1.33396079,57716.0,57715.0,0.001642]
[1726080630823,0.98743679,57716.0,57715.0,0.001642]
[1726080631047,0.29438879,57716.0,57715.0,0.001642]
[1726080632178,0.619786,57716.0,57715.0,0.001642]
[1726080632398,0.65093253,57716.0,57715.0,0.002642]
[1726080632698,0.01,57716.0,57715.0,0.002642]
[1726080632940,0.346466,57726.0,57717.0,0.173256]
[1726080632941,0.05149776,57720.0,57717.0,0.173256]
[1726080633415,0.15149776,57721.0,57715.0,0.001642]
[1726080633646,0.519786,57716.0,57715.0,0.001642]
[1726080633870,0.173262,57716.0,57715.0,0.001642]
[1726080634097,0.346504,57720.0,57715.0,0.001642]
[1726080634336,0.173256,57718.0,57715.0,0.001642]
[1726080634569,0.02103633,57717.0,57715.0,0.001642]
[1726080634961,0.173256,57718.0,57715.0,0.001642]
[1726080635200,0.001,57716.0,57715.0,0.005642]
[1726080635651,0.20042658,57718.0,57715.0,0.001642]
[1726080635880,0.02108628,57717.0,57715.0,0.001642]
[1726080636107,0.20042658,57718.0,57715.0,0.005642]
[1726080636337,0.02109772,57717.0,57715.0,0.178905]
[1726080636567,0.02717058,57718.0,57715.0,0.178905]
[1726080636568,0.02717058,57718.0,57715.0,0.005642]
[1726080636780,0.02109438,57717.0,57715.0,0.005642]
[1726080637011,0.02109438,57716.0,57715.0,0.178907]
[1726080637252,0.02109438,57716.0,57715.0,0.005642]
[1726080637476,0.02109438,57716.0,57715.0,0.001642]
[1726080637616,0.02106762,57716.0,57715.0,0.174907]
[1726080638284,0.02106762,57716.0,57715.0,0.177907]
[1726080638541,0.02106762,57716.0,57715.0,0.524437]
[1726080638767,0.02717058,57718.0,57715.0,0.001642]
[1726080638979,0.02717058,57718.0,57715.0,0.348172]
[1726080638980,0.02105676,57717.0,57715.0,0.348172]
[1726080639204,0.02717058,57718.0,57717.0,0.173259]
[1726080639439,0.04828861,57718.0,57717.0,0.519777]
[1726080639670,0.02717058,57718.0,57717.0,1.212813]
[1726080639886,0.02717058,57718.0,57717.0,1.56273711]
[1726080640606,0.02717058,57718.0,57717.0,0.11615344]
[1726080640607,0.83789458,57718.0,57717.0,0.11615344]
[1726080640837,1.92045528,57718.0,57717.0,0.11615344]
[1726080641062,0.98131,57716.0,57715.0,0.001642]
[1726080641272,1.85872764,57716.0,57715.0,0.004642]
[1726080641486,1.72998553,57716.0,57715.0,0.004642]
[1726080641711,1.83158553,57716.0,57715.0,0.001642]
[1726080642152,1.83156056,57716.0,57715.0,0.001642]
[1726080642373,2.54240155,57716.0,57715.0,0.001642]
[1726080643271,2.51941453,57716.0,57715.0,0.001642]
[1726080643515,2.54003079,57716.0,57715.0,0.001642]
[1726080644244,2.55403079,57716.0,57715.0,0.002642]
[1726080644524,2.55603079,57716.0,57715.0,0.002642]
[1726080644755,1.302918,57712.0,57711.0,0.00133609]
[1726080644982,1.44653426,57712.0,57711.0,0.00133609]
[1726080645200,1.41653426,57712.0,57711.0,0.00133609]
[1726080645416,1.52090653,57712.0,57711.0,0.00133609]
[1726080645893,1.49790653,57712.0,57711.0,0.00133609]
[1726080646113,1.4207113,57712.0,57711.0,0.00133609]
[1726080646358,1.46785704,57712.0,57711.0,0.00133609]
[1726080646823,1.47885704,57712.0,57711.0,0.00233609]
[1726080647455,1.4017113,57712.0,57711.0,0.00233609]
[1726080648090,1.47884443,57712.0,57711.0,0.00233609]
[1726080648524,1.4017113,57712.0,57711.0,0.00233609]
[1726080648955,1.44885297,57712.0,57711.0,0.00233609]
[1726080649174,1.47885297,57712.0,57711.0,0.00233609]
[1726080649387,1.3717113,57712.0,57711.0,0.00233609]
[1726080649598,1.4017113,57712.0,57711.0,0.00233609]
[1726080649813,1.47886925,57712.0,57711.0,0.00233609]
[1726080650271,1.70771518,57712.0,57711.0,0.00233609]
[1726080650514,1.70771518,57712.0,57695.0,0.00164]
[1726080650515,0.032,57682.0,57681.0,0.00013]
[1726080650744,3.91012375,57682.0,57681.0,0.00013]
[1726080650956,6.31394443,57682.0,57681.0,0.00013]
[1726080651176,6.74481114,57682.0,57681.0,0.00013]
[1726080651410,6.07384597,57682.0,57681.0,0.00013]
[1726080651613,5.32385314,57682.0,57681.0,0.00013]
[1726080651875,5.43025314,57682.0,57681.0,0.00013]
[1726080652322,5.43025314,57682.0,57657.0,0.00164]
[1726080652323,0.86715,57660.0,57657.0,0.00164]
[1726080652550,0.17343,57660.0,57657.0,0.00164]
[1726080652780,0.52462616,57660.0,57657.0,0.00164]
[1726080652983,0.87148616,57660.0,57657.0,0.00164]
[1726080653888,0.520317,57657.0,57656.0,0.0020578]
[1726080654329,0.867195,57657.0,57656.0,0.0020578]
[1726080654533,0.520317,57657.0,57656.0,0.0020578]
[1726080655184,1.314073,57657.0,57656.0,0.0020578]
[1726080655400,1.344073,57657.0,57656.0,0.0020578]
[1726080656092,0.997195,57657.0,57656.0,0.0020578]
[1726080656280,1.314073,57657.0,57656.0,0.0020578]
[1726080656524,1.344073,57657.0,57656.0,0.0020578]
[1726080657171,1.314073,57657.0,57656.0,0.0020578]
[1726080657377,0.520317,57657.0,57656.0,0.0020578]
[1726080657580,0.520317,57657.0,57656.0,0.1133578]
[1726080657794,0.173439,57657.0,57656.0,0.1133578]
[1726080657992,0.520317,57657.0,57656.0,0.1133578]
[1726080658215,0.86698647,57657.0,57656.0,0.1133578]
[1726080658408,0.52010847,57657.0,57656.0,0.1133578]
[1726080659078,0.86698647,57657.0,57656.0,0.1133578]
[1726080659263,0.52010847,57657.0,57656.0,0.1133578]
[1726080659523,0.52010847,57657.0,57656.0,0.0020578]
[1726080659967,0.86698647,57657.0,57656.0,0.0020578]
[1726080660538,0.894187,57657.0,57656.0,0.0020578]
[1726080660946,0.547309,57657.0,57656.0,0.0020578]
[1726080661717,0.894187,57657.0,57656.0,0.0868578]
[1726080662155,0.86698647,57657.0,57656.0,0.0020578]
[1726080662321,1.21386447,57657.0,57656.0,0.0020578]
[1726080662544,0.86698647,57657.0,57656.0,0.0020578]
[1726080663158,0.13,57663.0,57635.0,0.65689489]
[1726080663159,0.173461,57650.0,57645.0,0.173474]
[1726080663379,0.13,57663.0,57635.0,0.17371829]
[1726080663380,0.03,57663.0,57643.0,0.346959]
[1726080663580,0.03,57663.0,57646.0,0.00472722]
[1726080663581,0.173461,57650.0,57646.0,0.00472722]
[1726080663779,0.346912,57652.0,57644.0,0.173477]
[1726080664122,0.346878,57658.0,57642.0,0.346966]
[1726080664334,0.346874,57658.0,57643.0,0.0346966]
[1726080664544,0.346821,57667.0,57647.0,0.27661699]
[1726080664760,0.39235563,57673.0,57647.0,0.27661699]